bitfinex/quotes_BTCUSD_20251215
["timestamp","ask_amount","ask_price","bid_price","bid_amount"]
[1765809979946,0.03366189,89234.0,89198.0,0.02242202]
[1765809979947,0.01120925,89212.0,89209.0,0.17938527]
[1765809980158,0.23539559,89212.0,89210.0,0.02483]
[1765809980385,0.23539559,89212.0,89180.0,0.00099999]
[1765809980386,0.01121139,89195.0,89191.0,0.03604189]
[1765809980584,0.01121139,89195.0,89192.0,0.02483]
[1765809980796,0.01121088,89199.0,89194.0,0.17938527]
[1765809981002,0.2242253,89196.0,89194.0,0.17938527]
[1765809981206,0.22427056,89178.0,89177.0,0.02483]
[1765809981620,0.01121604,89158.0,89153.0,0.01146]
[1765809981825,0.00161287,89178.0,89153.0,0.01146]
[1765809982026,0.01121465,89169.0,89160.0,0.48269527]
[1765809982206,0.22430074,89166.0,89164.0,0.11124003]
[1765809982410,0.22430074,89166.0,89154.0,0.04283]
[1765809982411,0.22432841,89155.0,89154.0,0.02483]
[1765809982625,0.44856962,89173.0,89130.0,0.22439037]
[1765809982626,0.23557918,89142.0,89139.0,0.01146]
[1765809982826,0.23557918,89142.0,89126.0,0.17938527]
[1765809982827,0.22438489,89133.0,89131.0,0.03629]
[1765809983068,0.01121893,89135.0,89132.0,0.01121931]
[1765809983394,0.23559246,89137.0,89132.0,0.01121931]
[1765809983395,0.01121868,89137.0,89132.0,0.01121931]
[1765809983591,0.01121906,89134.0,89131.0,0.01146]
[1765809983747,0.01121881,89136.0,89131.0,0.02267944]
[1765809983959,0.01121881,89136.0,89129.0,0.02267969]
[1765809983960,0.01121931,89132.0,89129.0,0.01146]
[1765809984186,0.01121931,89132.0,89123.0,0.08972784]
[1765809984187,0.22440644,89124.0,89123.0,0.08972784]
[1765809984378,0.01121868,89137.0,89132.0,0.01121931]
[1765809984731,0.01121793,89143.0,89140.0,0.11124003]
[1765809984938,0.0112178,89144.0,89141.0,0.02483]
[1765809985150,0.22436113,89142.0,89141.0,0.02483]
[1765809985363,0.22436616,89140.0,89139.0,0.006]
[1765809985569,0.23557918,89142.0,89132.0,0.018]
[1765809985570,0.22438126,89134.0,89132.0,0.018]
[1765809985986,0.22438126,89134.0,89133.0,0.11124003]
[1765809986196,0.22438126,89134.0,89133.0,0.13607003]
[1765809986407,0.22438126,89134.0,89133.0,0.00167274]
[1765809986791,0.22438126,89134.0,89133.0,0.02650274]
[1765809987258,0.23559991,89135.0,89133.0,0.02650274]
[1765809987496,0.23559991,89135.0,89133.0,0.02483]
[1765809988384,0.23559991,89135.0,89133.0,0.02583]
[1765809988817,0.23559991,89135.0,89133.0,0.02683]
[1765809988955,0.23721278,89135.0,89133.0,0.002]
[1765809989177,0.05768264,89134.0,89133.0,0.002]
[1765809989364,0.00161287,89134.0,89133.0,0.004]
[1765809989592,0.29231287,89134.0,89133.0,0.004]
[1765809989797,0.22448452,89093.0,89092.0,0.01146]
[1765809990129,0.22448452,89093.0,89083.0,0.02483]
[1765809990130,0.2245072,89084.0,89083.0,0.03978]
[1765809990577,0.2245072,89084.0,89083.0,0.01495]
[1765809990989,0.2245072,89084.0,89076.0,0.01155]
[1765809990990,0.23573256,89084.0,89076.0,0.02277636]
[1765809991196,0.23573256,89084.0,89083.0,0.02993]
[1765809991641,0.22450653,89085.0,89083.0,0.02993]
[1765809991852,0.22451224,89082.0,89076.0,0.01155]
[1765809992290,0.01122536,89084.0,89081.0,0.09080036]
[1765809992495,0.22451192,89083.0,89081.0,0.09080036]
[1765809992711,0.22451192,89083.0,89081.0,0.08980036]
[1765809992914,0.22451192,89083.0,89082.0,0.02906]
[1765809993128,0.01122536,89084.0,89082.0,0.02906]
[1765809993334,0.23572797,89086.0,89082.0,0.02906]
[1765809993335,0.01122523,89085.0,89082.0,0.02906]
[1765809993549,0.01122473,89089.0,89083.0,0.01442068]
[1765809993762,0.01122422,89093.0,89087.0,0.01122498]
[1765809993970,0.22450216,89086.0,89082.0,0.02906]
[1765809994179,0.01122523,89085.0,89082.0,0.04028561]
[1765809994400,0.01961287,89099.0,89082.0,0.02906]
[1765809994621,0.2907,89110.0,89082.0,0.02906]
[1765809994622,0.01122309,89102.0,89097.0,0.11124003]
[1765809994850,0.01122309,89102.0,89085.0,0.01122523]
[1765809994851,0.01122422,89093.0,89085.0,0.01122523]
[1765809995052,0.11289862,89102.0,89081.0,0.08980036]
[1765809995248,0.22449831,89088.0,89083.0,0.22450851]
[1765809995449,0.23573256,89084.0,89081.0,0.09080036]
[1765809995676,0.23573256,89084.0,89081.0,0.08980036]
[1765809995677,0.22451165,89083.0,89081.0,0.08980036]
[1765809995886,0.22451165,89083.0,89076.0,0.01155]
[1765809995887,0.22452484,89077.0,89076.0,0.01155]
[1765809996705,0.22452484,89077.0,89076.0,9e-05]
[1765809996910,0.22613771,89077.0,89076.0,9e-05]
[1765809997117,0.00161287,89077.0,89076.0,9e-05]
[1765809997304,0.01122586,89080.0,89076.0,9e-05]
[1765809997305,0.01122599,89079.0,89076.0,0.01468]
[1765809997461,0.22452341,89078.0,89076.0,0.04374]
[1765809997664,0.01122586,89080.0,89077.0,0.02906]
[1765809997864,0.22452232,89078.0,89076.0,9e-05]
[1765809999209,0.01222586,89080.0,89077.0,0.02906]
[1765809999445,0.22452217,89079.0,89077.0,0.02906]
[1765809999875,0.23573158,89085.0,89077.0,0.02906]
[1765809999876,0.22449044,89091.0,89078.0,0.00334754]
[1765810000081,2.83210752,89146.0,89099.0,0.23569215]
[1765810000082,0.01122309,89102.0,89099.0,0.23569215]
[1765810000279,0.01122296,89103.0,89099.0,0.02012]
[1765810000280,0.01122334,89100.0,89099.0,0.02012]
[1765810000411,0.23568303,89103.0,89102.0,0.02012]
[1765810000857,0.23568303,89103.0,89102.0,0.04918]
[1765810001136,0.22447444,89097.0,89096.0,0.08972784]
[1765810001573,0.2244737,89098.0,89097.0,0.02906]
[1765810001806,0.2244737,89098.0,89097.0,0.02012]
[1765810002012,0.2244737,89098.0,89096.0,0.08972784]
[1765810002238,0.2244737,89098.0,89097.0,0.04918]
[1765810002411,0.22445485,89105.0,89101.0,0.23568601]
[1765810002646,0.01122183,89112.0,89105.0,0.02012]
[1765810002647,0.01122208,89110.0,89105.0,0.02012]
[1765810002795,0.22445006,89107.0,89106.0,0.02906]
[1765810003019,0.01122284,89104.0,89101.0,0.22446247]
[1765810003182,0.01122309,89102.0,89098.0,0.01122359]
[1765810003388,0.23569484,89099.0,89096.0,0.12038784]
[1765810003699,0.23569484,89099.0,89096.0,0.001]
[1765810003700,0.22447444,89097.0,89096.0,0.001]
[1765810004505,0.01122599,89079.0,89075.0,0.01122649]
[1765810004737,0.22452385,89078.0,89072.0,0.25359702]
[1765810004974,0.22452385,89078.0,89072.0,0.02906]
[1765810005187,0.23573258,89084.0,89077.0,0.04918]
[1765810005362,0.22452089,89079.0,89078.0,0.02012]
[1765810005778,0.2357444,89080.0,89078.0,0.02346754]
[1765810005981,0.01122561,89082.0,89079.0,0.02012]
[1765810006189,0.22452484,89077.0,89076.0,9e-05]
[1765810006617,0.22452484,89077.0,89076.0,0.00349848]
[1765810007105,0.01322586,89080.0,89077.0,0.22452404]
[1765810007382,0.01322586,89080.0,89079.0,0.02012]
[1765810007383,0.22651794,89080.0,89079.0,0.02012]
[1765810007598,0.22452466,89078.0,89076.0,9e-05]
[1765810007806,0.2357485,89079.0,89076.0,9e-05]
[1765810007807,0.01122599,89079.0,89076.0,9e-05]
[1765810008015,0.22451558,89081.0,89078.0,0.02012]
[1765810008230,0.22451794,89080.0,89078.0,0.02012]
[1765810008440,0.23574131,89081.0,89078.0,0.02012]
[1765810008441,0.22451559,89081.0,89079.0,0.02906]
[1765810008661,0.01122586,89080.0,89077.0,0.01122624]
[1765810008863,0.01122586,89080.0,89076.0,0.01131636]
[1765810009089,0.01122599,89079.0,89077.0,0.02906]
[1765810009272,0.2357366,89083.0,89079.0,0.02012]
[1765810009517,0.018,89087.0,89082.0,0.08972784]
[1765810009652,0.01122473,89089.0,89086.0,0.02012]
[1765810009653,0.22449516,89089.0,89086.0,0.02012]
[1765810009854,0.11128575,89099.0,89085.0,0.22450236]
[1765810009855,0.01122309,89102.0,89095.0,0.01122397]
[1765810010096,0.01122372,89097.0,89094.0,0.0112241]
[1765810010335,0.01122321,89101.0,89097.0,0.01122372]
[1765810010683,0.01122321,89101.0,89096.0,0.08972784]
[1765810010684,0.23568934,89101.0,89100.0,0.02012]
[1765810010890,0.22448386,89094.0,89090.0,0.02906]
[1765810011104,0.01122384,89096.0,89076.0,0.00109]
[1765810011105,0.01122485,89088.0,89084.0,0.01122536]
[1765810011318,0.01122447,89091.0,89084.0,0.01122536]
[1765810011319,0.23571487,89091.0,89086.0,0.0112251]
[1765810011529,0.22450113,89087.0,89085.0,0.02906]
[1765810011697,0.01122485,89088.0,89082.0,0.08972784]
[1765810011698,0.22450972,89083.0,89082.0,0.08972784]
[1765810011903,0.01122498,89087.0,89082.0,0.08972784]
[1765810012146,0.22450883,89084.0,89082.0,0.08972784]
[1765810012294,0.22450883,89084.0,89083.0,0.02906]
[1765810012495,0.22450883,89084.0,89082.0,0.08972784]
[1765810012897,0.22450883,89084.0,89082.0,0.09172784]
[1765810014022,0.11128575,89083.0,89082.0,0.003]
[1765810014174,0.11128575,89083.0,89082.0,0.001]
[1765810014603,0.22450883,89084.0,89082.0,0.003]
[1765810015031,0.22450883,89084.0,89082.0,0.001]
[1765810015471,0.11128575,89083.0,89082.0,0.003]
[1765810015827,0.21738437,89083.0,89082.0,0.003]
[1765810016030,0.21738437,89083.0,89028.0,0.07937816]
[1765810016031,0.2907,89076.0,89017.0,0.018]
[1765810016175,0.00099999,89080.0,89017.0,0.01459]
[1765810016176,0.01123343,89020.0,89017.0,0.01459]
[1765810016374,0.22467271,89019.0,89017.0,0.01459]
[1765810016584,0.2246736,89019.0,89017.0,0.01459]
[1765810016922,0.01123115,89038.0,89029.0,0.01123229]
[1765810017150,0.22459796,89048.0,89047.0,0.01459]
[1765810017360,0.01123191,89032.0,89021.0,0.0112333]
[1765810017643,0.22466356,89022.0,89021.0,0.02906]
[1765810017796,0.01123292,89024.0,89017.0,0.01559]
[1765810017797,0.22467366,89018.0,89017.0,0.001]
[1765810018000,0.22468123,89015.0,89011.0,0.001]
[1765810018429,0.22468123,89015.0,89014.0,0.00549901]
[1765810018837,0.24270609,89021.0,89014.0,0.00549901]
[1765810018838,0.01804,89021.0,89018.0,0.23590471]
[1765810019014,0.01123305,89023.0,89020.0,0.03471]
[1765810019216,0.01123305,89023.0,89018.0,0.01123368]
[1765810019217,0.22468123,89015.0,89014.0,0.0002]
[1765810019596,0.2246787,89016.0,89014.0,0.0002]
[1765810019799,0.22467618,89017.0,89015.0,0.04918]
[1765810020107,0.22468123,89015.0,89014.0,0.0002]
[1765810020315,0.0112338,89017.0,89014.0,0.0002]
[1765810020489,0.01804,89034.0,89014.0,0.0002]
[1765810020490,0.01123292,89024.0,89017.0,0.0112338]
[1765810020734,0.01123305,89023.0,89017.0,0.02012]
[1765810020948,0.001,89015.0,89014.0,0.0002]
[1765810021161,0.13193862,89015.0,89014.0,0.0002]
[1765810021379,0.01804,89015.0,89014.0,0.0002]
[1765810021608,0.03973157,89061.0,89023.0,0.01123305]
[1765810021828,0.02979868,89077.0,89020.0,0.72388065]
[1765810022069,0.69426063,89080.0,89020.0,0.72388065]
[1765810022070,0.01122788,89064.0,89061.0,0.01122825]
[1765810022284,0.01122699,89071.0,89066.0,0.01122762]
[1765810022527,0.03371839,89088.0,89057.0,0.10326784]
[1765810022528,0.01122775,89065.0,89058.0,0.02245727]
[1765810022730,0.01122775,89065.0,89032.0,0.73997388]
[1765810022731,0.01123065,89042.0,89040.0,0.01354]
[1765810023142,0.01123191,89032.0,89029.0,0.10096013]
[1765810023362,0.01122914,89054.0,89040.0,0.0112309]
[1765810023571,0.01122914,89054.0,89030.0,0.05092433]
[1765810023572,0.23581352,89054.0,89046.0,0.01123015]
[1765810023787,0.22456731,89061.0,89056.0,0.01122888]
[1765810023996,0.2245672,89061.0,89057.0,0.23580265]
[1765810024212,0.22455496,89066.0,89061.0,0.23579143]
[1765810024428,0.01808,89072.0,89069.0,0.22454322]
[1765810024677,0.22453439,89074.0,89069.0,0.01122725]
[1765810024678,0.01122662,89074.0,89069.0,0.01122725]
[1765810024886,0.01122888,89056.0,89043.0,0.01123052]
[1765810025107,0.22464337,89030.0,89029.0,0.08972784]
[1765810025310,0.01123128,89037.0,89031.0,0.01354]
[1765810025513,0.01123052,89043.0,89038.0,0.01123115]
[1765810025729,0.01808,89058.0,89032.0,0.06215574]
[1765810025964,0.01123027,89045.0,89039.0,0.01123103]
[1765810026155,0.01808,89058.0,89042.0,0.01123065]
[1765810026156,0.01122952,89051.0,89042.0,0.01123065]
[1765810026438,0.01808,89058.0,89041.0,0.11124003]
[1765810026646,0.01808,89058.0,89040.0,0.02846]
[1765810026647,0.2358413,89043.0,89040.0,0.02846]
[1765810026845,0.01123052,89043.0,89040.0,0.02846]
[1765810027056,0.22461517,89042.0,89040.0,0.02846]
[1765810027282,0.33589323,89045.0,89038.0,0.22462319]
[1765810027480,0.33589323,89045.0,89020.0,0.01354]
[1765810027481,0.01122901,89055.0,89050.0,0.01122964]
[1765810027707,0.01122762,89066.0,89058.0,0.01122863]
[1765810027917,0.01122838,89060.0,89058.0,0.02846]
[1765810028134,0.22458031,89055.0,89054.0,0.08972784]
[1765810028471,0.01123052,89043.0,89040.0,0.001]
[1765810028690,0.01123052,89043.0,89035.0,0.02846]
[1765810028691,0.01123078,89041.0,89037.0,0.01123128]
[1765810028892,0.23584564,89042.0,89038.0,0.01123115]
[1765810029122,0.22463833,89032.0,89022.0,0.02846]
[1765810029376,0.22466609,89021.0,89012.0,0.01123444]
[1765810029505,0.22466609,89021.0,89010.0,0.042]
[1765810029506,0.2246787,89016.0,89010.0,0.042]
[1765810029918,0.01123317,89022.0,89016.0,0.02846]
[1765810030124,0.01123317,89022.0,89017.0,0.22467618]
[1765810030328,0.23590366,89020.0,89016.0,0.02846]
[1765810030507,0.23589475,89023.0,89021.0,0.00508544]
[1765810030708,0.22467401,89018.0,89016.0,0.02846]
[1765810031087,0.01123368,89018.0,89017.0,0.02846]
[1765810031501,0.22467618,89017.0,89016.0,0.001]
[1765810031903,0.22467618,89017.0,89014.0,0.0002]
[1765810031904,0.22468123,89015.0,89014.0,0.0002]
[1765810032198,0.22470142,89007.0,89000.0,30.0177]
[1765810032437,0.22470142,89007.0,89000.0,29.51008643]
[1765810032438,0.51541657,89001.0,89000.0,29.51008643]
[1765810032715,0.53349657,89001.0,89000.0,29.51008643]
[1765810033045,0.24279657,89001.0,89000.0,29.51008643]
[1765810033243,0.35408232,89001.0,89000.0,29.51008643]
[1765810033939,0.24279657,89001.0,89000.0,29.51008643]
[1765810034142,0.01123444,89012.0,89000.0,29.51008643]
[1765810034143,0.01123368,89018.0,89000.0,29.53854643]
[1765810034341,0.22467366,89018.0,89017.0,0.08972784]
[1765810034873,0.01123343,89020.0,89017.0,0.08972784]
[1765810035066,0.22467334,89019.0,89017.0,0.08972784]
[1765810035279,0.11128575,89015.0,89009.0,0.01123481]
[1765810035478,0.01123418,89014.0,89005.0,0.01123532]
[1765810035723,0.01123494,89008.0,89003.0,0.10096341]
[1765810036063,0.22471657,89001.0,89000.0,29.51008643]
[1765810036491,0.22471657,89001.0,89000.0,29.5158127]
[1765810036688,0.62831519,89001.0,89000.0,29.5158127]
[1765810037439,0.62670232,89001.0,89000.0,29.5158127]
[1765810037709,0.62831519,89001.0,89000.0,29.5158127]
[1765810037859,0.51641657,89001.0,89000.0,29.5158127]
[1765810038040,0.62770232,89001.0,89000.0,29.5158127]
[1765810038385,0.62670232,89001.0,89000.0,29.5158127]
[1765810038763,0.63270232,89001.0,89000.0,29.5158127]
[1765810039133,0.63170232,89001.0,89000.0,29.5158127]
[1765810039594,0.63770232,89001.0,89000.0,29.5168127]
[1765810039824,0.52641657,89001.0,89000.0,29.5168127]
[1765810040099,0.52641657,89001.0,89000.0,29.5158127]
[1765810040100,0.64978232,89001.0,89000.0,29.5158127]
[1765810040276,0.65478232,89001.0,89000.0,29.5158127]
[1765810040466,0.53849657,89001.0,89000.0,29.5158127]
[1765810040662,0.64978232,89001.0,89000.0,29.5158127]
[1765810040873,0.63170232,89001.0,89000.0,29.5158127]
[1765810041077,0.65378232,89001.0,89000.0,29.5158127]
[1765810041505,0.65539519,89001.0,89000.0,29.5158127]
[1765810041762,0.64878232,89001.0,89000.0,29.5158127]
[1765810041967,0.53910944,89001.0,89000.0,29.5158127]
[1765810042178,0.80910164,89001.0,89000.0,29.5158127]
[1765810042389,1.70330358,89001.0,89000.0,28.65074901]
[1765810042610,1.73544371,89001.0,89000.0,28.28694769]
[1765810042824,1.76611926,89001.0,89000.0,27.98483462]
[1765810043010,1.85074091,89001.0,89000.0,27.98483462]
[1765810043219,1.85074091,89001.0,89000.0,27.66769977]
[1765810043433,0.53057498,89001.0,89000.0,27.66769977]
[1765810043640,0.53999944,89001.0,89000.0,27.66769977]
[1765810043853,0.67155257,89001.0,89000.0,27.66869977]
[1765810044063,0.66128519,89001.0,89000.0,27.66869977]
[1765810044278,1.37058519,89001.0,89000.0,27.66869977]
[1765810044472,0.36762519,89001.0,89000.0,27.66869977]
[1765810045115,0.36712232,89001.0,89000.0,27.66869977]
[1765810045346,0.36873519,89001.0,89000.0,27.66869977]
[1765810045549,0.36873519,89001.0,89000.0,26.5665944]
[1765810045550,1.61429443,89001.0,89000.0,26.5665944]
[1765810045680,1.76013339,89001.0,89000.0,26.5575944]
[1765810045880,1.73626167,89001.0,89000.0,26.26352874]
[1765810046078,1.74626167,89001.0,89000.0,26.25652874]
[1765810046288,1.74626167,89001.0,89000.0,25.96898027]
[1765810046489,1.62497592,89001.0,89000.0,25.67883968]
[1765810046704,1.68114563,89001.0,89000.0,25.67883968]
[1765810046940,1.69114563,89001.0,89000.0,25.34027064]
[1765810047183,1.69114563,89001.0,89000.0,25.0762508]
[1765810047184,1.62285592,89001.0,89000.0,25.0762508]
[1765810047387,1.54981372,89001.0,89000.0,25.0752508]
[1765810047572,0.37039947,89001.0,89000.0,25.0742508]
[1765810047808,0.24283657,89001.0,89000.0,25.0742508]
[1765810048014,0.38367714,89001.0,89000.0,25.0752508]
[1765810048230,1.31727671,89001.0,89000.0,25.0752508]
[1765810048374,1.60797671,89001.0,89000.0,25.0752508]
[1765810048573,0.58960634,89001.0,89000.0,25.0742508]
[1765810048801,1.65850403,89001.0,89000.0,25.0752508]
[1765810049005,1.65850403,89001.0,89000.0,25.0762508]
[1765810049006,1.6582376,89001.0,89000.0,25.0762508]
[1765810049210,0.59216783,89001.0,89000.0,25.0752508]
[1765810049411,0.65182232,89001.0,89000.0,25.0752508]
[1765810049612,0.65982232,89001.0,89000.0,25.0762508]
[1765810050101,1.41723519,89001.0,89000.0,25.0752508]
[1765810050340,1.41723519,89001.0,89000.0,24.54427814]
[1765810050341,1.52774281,89001.0,89000.0,24.54427814]
[1765810050533,1.59587264,89001.0,89000.0,24.27701009]
[1765810050789,1.48458689,89001.0,89000.0,24.27291009]
[1765810050992,1.46440007,89001.0,89000.0,24.27291009]
[1765810051213,0.89720634,89001.0,89000.0,24.27291009]
[1765810051422,0.95919815,89001.0,89000.0,23.723999]
[1765810051644,0.95119815,89001.0,89000.0,23.722999]
[1765810051810,0.71471419,89001.0,89000.0,23.723999]
[1765810051967,0.91750132,89001.0,89000.0,23.723999]
[1765810052173,0.65282232,89001.0,89000.0,23.723999]
[1765810052379,1.64482232,89001.0,89000.0,23.722999]
[1765810052586,0.65282232,89001.0,89000.0,23.723999]
[1765810052779,0.64482232,89001.0,89000.0,23.722999]
[1765810053199,0.65382232,89001.0,89000.0,23.723999]
[1765810053560,0.64482232,89001.0,89000.0,23.722999]
[1765810053772,0.65282232,89001.0,89000.0,23.723999]
[1765810053978,0.65982232,89001.0,89000.0,23.724999]
[1765810054180,0.02512,89001.0,89000.0,23.723999]
[1765810054386,0.12940575,89001.0,89000.0,23.722999]
[1765810054611,0.02312,89001.0,89000.0,23.722999]
[1765810054818,0.13440575,89001.0,89000.0,23.722999]
[1765810055219,0.01812,89001.0,89000.0,23.722999]
[1765810055430,0.01123393,89016.0,89000.0,23.722999]
[1765810055431,0.01123456,89011.0,89000.0,23.722999]
[1765810055680,0.003,89001.0,89000.0,23.71727273]
[1765810056037,0.11428575,89001.0,89000.0,23.71727273]
[1765810056376,0.12028575,89001.0,89000.0,23.71827273]
[1765810056581,0.01812,89002.0,89000.0,23.71727273]
[1765810056789,0.24283405,89002.0,89000.0,23.71727273]
[1765810056990,0.11228575,89001.0,89000.0,23.722999]
[1765810057201,0.001,89001.0,89000.0,23.722999]
[1765810057426,0.11128575,89017.0,89011.0,0.01123456]
[1765810057665,0.23588614,89026.0,89011.0,0.01123456]
[1765810057666,0.33594078,89026.0,89013.0,0.01123431]
[1765810057922,0.01812,89028.0,89020.0,0.01123343]
[1765810058170,0.01812,89028.0,89017.0,0.0112338]
[1765810058395,0.01812,89028.0,89016.0,0.01123393]
[1765810058627,0.22466456,89022.0,89008.0,0.01123494]
[1765810058853,0.01123292,89024.0,89010.0,0.01123469]
[1765810059059,0.23589478,89023.0,89009.0,0.23593014]
[1765810059326,0.01123292,89024.0,89011.0,0.08336456]
[1765810059584,0.01123292,89024.0,89012.0,0.01123444]
[1765810059830,0.01123418,89014.0,89001.0,0.03552]
[1765810060089,0.12252019,89012.0,89000.0,23.71727273]
[1765810060315,0.6276332,89039.0,89000.0,23.71727273]
[1765810060316,0.11128575,89017.0,89011.0,0.01123456]
[1765810060584,0.2907,89039.0,89000.0,23.71727273]
[1765810060585,0.01123444,89012.0,89000.0,23.71727273]
[1765810060797,0.23593747,89007.0,89000.0,23.71727273]
[1765810061031,0.01123507,89007.0,89000.0,23.71727273]
[1765810061276,0.01812,89011.0,89001.0,0.03552]
[1765810061537,0.01812,89011.0,89003.0,0.01123557]
[1765810061758,0.01812,89011.0,89005.0,0.01123532]
[1765810061974,0.23589674,89022.0,89004.0,0.01123545]
[1765810061975,0.001,89012.0,89004.0,0.296839]
[1765810062199,0.001,89012.0,89001.0,0.04675582]
[1765810062483,0.001,89012.0,89010.0,0.22469165]
[1765810062729,0.001,89012.0,89005.0,0.21707599]
[1765810062730,0.01812,89032.0,89026.0,0.23588393]
[1765810062951,0.01812,89032.0,89028.0,0.23588023]
[1765810063178,0.01123115,89038.0,89031.0,0.03552]
[1765810063395,0.11128575,89039.0,89031.0,0.03552]
[1765810063591,0.01812,89041.0,89039.0,0.22462067]
[1765810063792,0.01122888,89056.0,89042.0,0.01123065]
[1765810063793,0.01812,89051.0,89042.0,0.01123065]
[1765810064014,0.01812,89051.0,89038.0,0.08972784]
[1765810064211,0.01812,89051.0,89040.0,0.07213]
[1765810064400,0.001,89032.0,89029.0,0.01812]
[1765810064546,0.001,89032.0,89028.0,0.07213]
[1765810064742,0.001,89032.0,89024.0,0.03552]
[1765810064942,0.12251564,89048.0,89031.0,0.08972784]
[1765810065169,0.22459379,89050.0,89045.0,0.08972784]
[1765810065374,0.03096239,89051.0,89045.0,0.08972784]
[1765810065375,0.01812,89051.0,89050.0,0.03552]
[1765810065597,0.01812,89051.0,89030.0,0.01123216]
[1765810067179,0.23584278,89043.0,89035.0,0.08972784]
[1765810067392,0.0112309,89040.0,89035.0,0.08972784]
[1765810067668,0.0112304,89044.0,89035.0,0.08972784]
[1765810067878,0.23584146,89043.0,89035.0,0.08972784]
[1765810068132,0.01123078,89041.0,89036.0,0.07213]
[1765810068348,0.33787871,89050.0,89036.0,0.07213]
[1765810068349,0.01122699,89071.0,89050.0,0.22459064]
[1765810068568,0.03495,89048.0,89000.0,23.71827272]
[1765810068773,0.01123103,89039.0,89000.0,23.71727273]
[1765810068983,0.2907,89046.0,89038.0,0.00456688]
[1765810069196,0.07147,89045.0,89000.0,23.71727273]
[1765810069397,0.03495,89052.0,89000.0,23.71727273]
[1765810069398,0.001,89041.0,89033.0,0.01123179]
[1765810069579,0.001,89041.0,89004.0,0.44941679]
[1765810069580,0.001,89041.0,89030.0,0.01123216]
[1765810069783,0.01824,89044.0,89031.0,0.01123204]
[1765810069982,0.0294704,89044.0,89024.0,0.23589014]
[1765810070294,0.0294704,89044.0,89025.0,0.10096063]
[1765810070295,0.002,89040.0,89025.0,0.10096063]
[1765810070534,0.002,89040.0,89025.0,0.08972784]
[1765810070666,0.22464924,89028.0,89008.0,0.01123494]
[1765810070865,0.22464924,89028.0,89006.0,0.01123519]
[1765810070866,0.07147,89027.0,89014.0,0.01123418]
[1765810071656,0.07147,89027.0,89012.0,0.01123444]
[1765810071857,0.07147,89027.0,89017.0,0.0112338]
[1765810071970,0.07147,89027.0,89021.0,0.0112333]
[1765810072173,0.07147,89027.0,89018.0,0.22467366]
[1765810072378,0.01824,89026.0,89018.0,0.01123368]
[1765810072583,0.01824,89026.0,89022.0,0.23589558]
[1765810072851,0.01824,89026.0,89014.0,0.001]
[1765810072852,0.08971,89026.0,89017.0,0.0112338]
[1765810073045,0.22468123,89015.0,89014.0,0.001]
[1765810073243,0.01123469,89010.0,88993.0,0.01123683]
[1765810073415,0.01123545,89004.0,88992.0,0.0002]
[1765810073902,0.23593566,89008.0,88992.0,0.0002]
[1765810073903,0.0182,89003.0,88994.0,0.01123671]
[1765810074113,0.0182,89003.0,89002.0,0.0112357]
[1765810074319,0.07147,89026.0,89000.0,23.71727273]
[1765810074529,0.07147,89026.0,89009.0,0.01123481]
[1765810074530,0.01123305,89023.0,89009.0,0.01123481]
[1765810074777,0.01123317,89022.0,89008.0,0.01123494]
[1765810074950,0.0112333,89021.0,89006.0,0.01123519]
[1765810075154,0.07147,89022.0,89008.0,0.01123494]
[1765810075358,0.07147,89022.0,89017.0,0.0112338]
[1765810075561,0.07147,89037.0,89026.0,0.01123267]
[1765810075780,0.1183,89079.0,89033.0,0.22463521]
[1765810075781,0.03656287,89048.0,89033.0,0.22463521]
[1765810075974,0.23583707,89045.0,89029.0,0.23587609]
[1765810076175,0.00161287,89045.0,89033.0,0.08972784]
[1765810076389,0.00161287,89045.0,89036.0,0.22462824]
[1765810076698,0.04617813,89062.0,89051.0,0.01122952]
[1765810077060,0.04617813,89062.0,89033.0,0.08972784]
[1765810077061,0.01122876,89057.0,89033.0,0.08972784]
[1765810077271,0.01824,89061.0,89040.0,0.0112309]
[1765810077272,0.23581845,89052.0,89040.0,0.0112309]
[1765810077486,0.01123103,89039.0,89033.0,0.08972784]
[1765810077698,0.01824,89038.0,89028.0,0.01123242]
[1765810077953,0.01824,89038.0,89008.0,0.04070989]
[1765810077954,0.01824,89038.0,89027.0,0.01123254]
[1765810078213,0.01824,89038.0,89029.0,0.01123229]
[1765810078418,0.01824,89038.0,89032.0,0.01123191]
[1765810078586,0.01824,89038.0,89033.0,0.01123179]
[1765810078806,0.24286345,89038.0,89021.0,0.0112333]
[1765810079043,0.01123279,89025.0,89011.0,0.01123456]
[1765810079281,0.0112338,89017.0,88998.0,0.0112362]
[1765810079504,0.2359341,89008.0,88993.0,0.01123683]
[1765810079709,0.01123418,89014.0,89001.0,0.08972784]
[1765810079913,0.01123481,89009.0,88997.0,0.00808764]
[1765810080158,0.07147,89015.0,89003.0,0.01123557]
[1765810080159,0.08270406,89015.0,89003.0,0.01123557]
[1765810080374,0.22471626,89002.0,89000.0,23.71727273]
[1765810080583,0.31442657,89001.0,89000.0,23.71727273]
[1765810081018,1.65675783,89001.0,89000.0,23.41827273]
[1765810081228,1.76726545,89001.0,89000.0,22.89848962]
[1765810081438,1.80712231,89001.0,89000.0,22.63345941]
[1765810081685,1.80712231,89001.0,89000.0,22.36643088]
[1765810081931,1.80712231,89001.0,89000.0,22.08882276]
[1765810082145,1.69661469,89001.0,89000.0,22.08882276]
[1765810082362,0.76130879,89001.0,89000.0,22.08882276]
[1765810082566,0.80330371,89001.0,89000.0,22.08882276]
[1765810082983,0.80330371,89001.0,89000.0,21.58201864]
[1765810082984,1.67285645,89001.0,89000.0,21.58201864]
[1765810083192,1.78887735,89001.0,89000.0,21.58201864]
[1765810083410,1.81611735,89001.0,89000.0,21.58301864]
[1765810083624,1.71299686,89001.0,89000.0,21.58401864]
[1765810083847,0.00753024,89001.0,89000.0,21.58301864]
[1765810084052,0.02577024,89001.0,89000.0,21.58301864]
[1765810084263,0.25395657,89001.0,89000.0,21.58301864]
[1765810085003,0.03824,89001.0,89000.0,21.58401864]
[1765810085245,0.26295657,89001.0,89000.0,21.58401864]
[1765810085680,0.54265657,89001.0,89000.0,21.58301864]
[1765810086142,0.55165657,89001.0,89000.0,21.58401864]
[1765810086297,0.55165657,89001.0,89000.0,21.58301864]
[1765810086298,0.54265657,89001.0,89000.0,21.58301864]
[1765810086515,0.22470395,89006.0,89000.0,21.58201864]
[1765810086704,0.00099999,89040.0,89000.0,21.57629237]
[1765810086705,0.005,89001.0,89000.0,21.57629237]
[1765810086936,0.01,89001.0,89000.0,21.57629237]
[1765810087136,0.01123368,89018.0,89002.0,0.0112357]
[1765810087369,0.0112338,89017.0,89000.0,21.57629237]
[1765810087577,0.009,89001.0,89000.0,21.57629237]
[1765810087978,0.005,89001.0,89000.0,21.57629237]